Cogmind - Beta 11.2 @@@ ROGUE MODE // 2022.12.27 @ 15:16:03 // Winter2022/Polymind Player: aoemica Result: Destroyed by H-88 Terminator with KE Penetrator Performance ------------- Evolutions (9) 4500 Regions Visited (31) 6200 Robots Destroyed (79) 395 Value Destroyed (3640) 3640 Prototype IDs (33) 660 Alien Tech Used (0) 0 Bonus (16753) 16753 TOTAL SCORE: 31868 Bonus ------- Polymind Skill 13951 High Alert Combat Kills 89 Follower Combat Kills 1556 Entered DSFs 500 Network Hubs Disabled 400 Met Data Miner 300 Met Imprinter 300 Was Imprinted 300 Friendly Fire -643 Cogmind --------- Core Integrity 0/1600 Matter 0/0 Energy 93/95 System Corruption 0% Temperature Cool (4) Movement Hovering (56) Location -1/Access Parts ------- > --- POWER (1) -------- Light Antimatter Reactor > --- PROPULSION (2) --- Antigrav System Antigrav System > --- UTILITY (3) ------ Advanced Visual Processing Unit Advanced Sensor Array Advanced Signal Interpreter > --- WEAPON (0) ------- (None) > --- INVENTORY (0) ---- (None) Peak State ------------ > --- POWER ------------ Heavy Deuterium Engine > --- PROPULSION ------- Combat Antigrav System > --- UTILITY ---------- Advanced Launcher Guidance Computer Improved Target Analyzer Experimental Core Analyzer Improved Armor Integrity Analyzer EX Chip 1 EX Chip 1 EX Chip 1 EX Chip 1 EX Chip 1 EX Chip 1 EX Chip 1 EX Chip 1 EX Chip 1 EX Chip 1 EX Chip 2 EX Chip 2 EX Chip 2 EX Chip 2 EX Chip 2 EX Chip 2 EX Chip 2 EX Chip 2 > --- WEAPON ----------- AWS/EX-DEC > --- INVENTORY -------- Deploy-a-Sentry [Rating: 99] Favorites ----------- Power Improved Deuterium Engine Engine Improved Deuterium Engine Power Core Light Fission Core Reactor Zionite Heavy DM Reactor Propulsion Compact Wheel Treads Light Treads Leg Zionite Composite Leg I Wheel Compact Wheel Hover Unit Combat Antigrav System Flight Unit Xenon Bombardment Thruster Utility Improved Heat Sink Device Improved Heat Sink Storage Medium Storage Unit Processor Targeting Computer Hackware EX Chip 1 Protection Improved Light Armor Plating Weapon Gatling Laser Energy Gun Gatling Laser Energy Cannon EMDS Ballistic Gun Flak Gun Ballistic Cannon Compact Linear Accelerator Special Weapon Advanced Remote Datajack Piercing Weapon Plasma Lance Special Melee Weapon Advanced Datajack Build | -11 -10 -10 -10 -9 -8 -7 -7 -7 -7 -7 -7 -6 -6 -6 -6 -6 -6 -6 -5 -5 -5 -5 -5 -5 -4 -4 -3 -3 -2 -2 -1 ------- Run | Scr Mat Min Exi Min Mat Fac Was Fac Low Low Dat Pro Fac Was Fac Low Low Zio Pro Fac Ext Cet Arc Hub Fac DSF Res Tes Res Qua Acc Slots Evolved . | . . . . . . . . . . . . . . . . . . . . . . . . . . . . . . . . Power . | . . . . . . . . . . . . . . . . . . . . . . . . . . . . . . . . Propulsion . | . . . . . . . . . . . . . . . . . . . . . . . . . . . . . . . . Utility . | . . . . . . . . . . . . . . . . . . . . . . . . . . . . . . . . Weapon . | . . . . . . . . . . . . . . . . . . . . . . . . . . . . . . . . Parts Attached . | . . . . . . . . . . . . . . . . . . . . . . . . . . . . . . . . Power . | . . . . . . . . . . . . . . . . . . . . . . . . . . . . . . . . Engine . | . . . . . . . . . . . . . . . . . . . . . . . . . . . . . . . . Core . | . . . . . . . . . . . . . . . . . . . . . . . . . . . . . . . . Reactor . | . . . . . . . . . . . . . . . . . . . . . . . . . . . . . . . . Propulsion . | . . . . . . . . . . . . . . . . . . . . . . . . . . . . . . . . Treads . | . . . . . . . . . . . . . . . . . . . . . . . . . . . . . . . . Leg . | . . . . . . . . . . . . . . . . . . . . . . . . . . . . . . . . Wheel . | . . . . . . . . . . . . . . . . . . . . . . . . . . . . . . . . Hover . | . . . . . . . . . . . . . . . . . . . . . . . . . . . . . . . . Flight . | . . . . . . . . . . . . . . . . . . . . . . . . . . . . . . . . Utility . | . . . . . . . . . . . . . . . . . . . . . . . . . . . . . . . . Device . | . . . . . . . . . . . . . . . . . . . . . . . . . . . . . . . . Storage . | . . . . . . . . . . . . . . . . . . . . . . . . . . . . . . . . Processor . | . . . . . . . . . . . . . . . . . . . . . . . . . . . . . . . . Hackware . | . . . . . . . . . . . . . . . . . . . . . . . . . . . . . . . . Protection . | . . . . . . . . . . . . . . . . . . . . . . . . . . . . . . . . Artifact . | . . . . . . . . . . . . . . . . . . . . . . . . . . . . . . . . Weapon . | . . . . . . . . . . . . . . . . . . . . . . . . . . . . . . . . Energy Gun . | . . . . . . . . . . . . . . . . . . . . . . . . . . . . . . . . Energy Cannon . | . . . . . . . . . . . . . . . . . . . . . . . . . . . . . . . . Ballistic Gun . | . . . . . . . . . . . . . . . . . . . . . . . . . . . . . . . . Ballistic Cannon . | . . . . . . . . . . . . . . . . . . . . . . . . . . . . . . . . Launcher . | . . . . . . . . . . . . . . . . . . . . . . . . . . . . . . . . Special Weapon . | . . . . . . . . . . . . . . . . . . . . . . . . . . . . . . . . Impact Weapon . | . . . . . . . . . . . . . . . . . . . . . . . . . . . . . . . . Slashing Weapon . | . . . . . . . . . . . . . . . . . . . . . . . . . . . . . . . . Piercing Weapon . | . . . . . . . . . . . . . . . . . . . . . . . . . . . . . . . . Special Melee Weapon . | . . . . . . . . . . . . . . . . . . . . . . . . . . . . . . . . Unidentified Prototypes . | . . . . . . . . . . . . . . . . . . . . . . . . . . . . . . . . Parts Lost 63 | . . . . . 2 . . . . . . . 6 . . . . . . . 6 6 . 7 . . 13 . 8 . 15 Power 7 | . . . . . . . . . . . . . 1 . . . . . . . . 1 . . . . 2 . 1 . 2 Propulsion 25 | . . . . . . . . . . . . . 2 . . . . . . . . 1 . . . . 8 . 4 . 10 Utility 18 | . . . . . 1 . . . . . . . 1 . . . . . . . 4 2 . 6 . . 2 . 1 . 1 Weapon 13 | . . . . . 1 . . . . . . . 2 . . . . . . . 2 2 . 1 . . 1 . 2 . 2 Highest Loss Streak 9 | . . . . . 1 . . . . . . . 6 . . . . . . . 3 3 . 4 . . 4 . 5 . 9 To Critical Strikes . | . . . . . . . . . . . . . . . . . . . . . . . . . . . . . . . . Average Slot Usage (%) 88 | . 55 100 98 96 93 87 . 94 100 100 100 100 96 25 74 100 100 100 100 98 86 71 87 88 81 81 80 50 88 100 66 Engine 7 | . 11 20 14 3 7 12 . 11 12 12 12 12 11 . 7 12 12 12 12 9 . 3 . . . . . . . . . Reactor 2 | . . . . . . . . . . . . . . . . . . . . 1 7 5 10 8 9 9 11 . 7 20 11 Treads 9 | . . . . . 12 25 . 23 25 25 25 25 23 . . . . . . . . 8 20 6 . . . . . . . Leg 3 | . 22 40 26 . . . . . . . . . . . . . . . . 2 14 6 . 10 18 18 4 . . . . Wheel 11 | . . . . . . . . . . . . . . . 32 50 50 50 50 40 . . . . . . . . . . 3 Flight 2 | . . . . . . . . . . . . . . . . . . . . . . . . . . . 30 20 10 60 30 Device 18 | . 11 20 13 . 8 12 . 23 25 25 25 25 25 25 25 25 25 25 25 22 13 21 21 21 27 27 9 . 10 . 1 Storage 3 | . . . . . . . . . . . . . . . 7 12 12 12 12 11 5 . . 2 . . 1 . 8 . 2 Processor 2 | . . . 5 15 7 . . . . . . . . . . . . . . 2 14 . . 8 9 9 2 . 5 . . Hackware 4 | . . . 23 69 33 . . . . . . . . . . . . . . . . . 1 . . . . . 10 . . Protection 6 | . . . . . 6 12 . 11 12 12 12 12 11 . . . . . . 2 10 6 10 11 9 9 2 10 . . . Energy Gun 7 | . 11 20 14 3 7 12 . 11 12 12 12 12 11 . . . . . . 4 20 12 10 13 . . 1 . 8 . . Ballistic Gun 5 | . . . . . 6 12 . 11 12 12 12 12 11 . . . . . . . . 5 10 3 . . 8 . 2 20 15 Naked Turns 656 | . 45 . 8 . 1 1 471 43 . . . . . . 1 . . . . 1 . 17 7 . . . 12 . 1 . 48 Heaviest Build 49 | . 7 7 21 21 21 17 . 23 23 23 23 23 23 2 26 26 26 26 26 48 48 40 47 49 47 47 47 12 31 17 26 Greatest Support 80 | 3 20 20 20 16 40 40 3 40 40 40 40 40 40 3 64 64 64 64 64 64 48 80 56 60 60 60 64 32 33 18 64 Greatest Overweight (x) 2 | . . . 1 1 1 . . . . . . . . . . . . . . . . . . . . . 1 . 1 . 2 Average Overweight (x) . | . . . . 1 . . . . . . . . . . . . . . . . . . . . . . . . . . . Largest Inventory Capacity 6 | . 1 1 1 1 1 1 . 1 1 1 1 1 1 1 6 6 6 6 6 6 1 1 1 1 1 1 6 1 1 . 6 Average Capacity 2 | . . 1 . 1 . . . . 1 1 1 1 1 1 4 6 6 6 6 5 1 . . 1 1 1 . 1 . . . Most Carried 6 | . . . 1 1 1 . . . . . . . . . 4 . 3 . . 6 . . . . . . . . . . 1 Average Carried . | . . . . 1 . . . . . . . . . . . . . . . . . . . . . . . . . . . Final Capacity 6 | . 1 1 1 1 1 . . 1 1 1 1 1 1 1 6 6 6 6 6 1 1 . 1 1 1 1 1 1 . . . Final Carried 1 | . . . 1 1 . . . . . . . . . . . . . . . . . . . . . . . . . . . Class Distribution -------------------- 41% | Sentry 22% | Recycler 10% | Z-Heavy 5% | Tinkerer 5% | Cogmind 5% | Swarmer 3% | Hunter Dominant Class ---------------- Grunt | -10/Materials Grunt | -10/Mines Grunt | -10/Exiles Tinkerer | -9/Mines Sentry | -8/Materials Sentry | -7/Factory Cogmind | -7/Waste Sentry | -7/Factory Sentry | -7/Lower Caves Sentry | -7/Lower Caves Sentry | -7/Data Miner Sentry | -6/Proximity Caves Sentry | -6/Factory Sentry | -6/Waste Recycler | -6/Factory Recycler | -6/Lower Caves Recycler | -6/Lower Caves Recycler | -6/Zion Recycler | -5/Proximity Caves Recycler | -5/Factory Z-Heavy | -5/Extension Sentry | -5/Cetus Sentry | -5/Archives Z-Heavy | -5/Hub_04(d) Hunter | -4/Factory Hunter | -4/DSF Swarmer | -3/Research Striker | -3/Testing Programmer | -2/Research Swarmer | -2/Quarantine Swarmer | -1/Access Resources | -11 -10 -10 -10 -9 -8 -7 -7 -7 -7 -7 -7 -6 -6 -6 -6 -6 -6 -6 -5 -5 -5 -5 -5 -5 -4 -4 -3 -3 -2 -2 -1 ----------- Run | Scr Mat Min Exi Min Mat Fac Was Fac Low Low Dat Pro Fac Was Fac Low Low Zio Pro Fac Ext Cet Arc Hub Fac DSF Res Tes Res Qua Acc Matter Collected 473 | . . . . . 28 . . 24 14 . . . 97 . . . . . . . . 20 89 120 . . 58 . . 8 15 Remotely . | . . . . . . . . . . . . . . . . . . . . . . . . . . . . . . . . Salvage Created 3069 | . 68 . . 84 757 . . 103 . . . . 197 . . . . . . . 511 361 120 553 . . 46 . 269 . . Parts 190 | . 6 . 2 5 46 . . 6 . . . . 10 . . . . . . 4 42 14 13 18 . . 4 . 20 . . Haulers Intercepted . | . . . . . . . . . . . . . . . . . . . . . . . . . . . . . . . . Recyclers Shooed 3 | . . . . . 1 . . 1 . . . . . . . . . . . . 1 . . . . . . . . . . Parts Field Recycled . | . . . . . . . . . . . . . . . . . . . . . . . . . . . . . . . . Retrieved Matter . | . . . . . . . . . . . . . . . . . . . . . . . . . . . . . . . . Parts Self-Destructed 28 | . . . . . . . . . . . . 10 . . . . . 2 16 . . . . . . . . . . . . Prevented 15 | . . . . . . . . . . . . . . . . . . . 15 . . . . . . . . . . . . Kills | -11 -10 -10 -10 -9 -8 -7 -7 -7 -7 -7 -7 -6 -6 -6 -6 -6 -6 -6 -5 -5 -5 -5 -5 -5 -4 -4 -3 -3 -2 -2 -1 ------- Run | Scr Mat Min Exi Min Mat Fac Was Fac Low Low Dat Pro Fac Was Fac Low Low Zio Pro Fac Ext Cet Arc Hub Fac DSF Res Tes Res Qua Acc Combat Hostiles Destroyed 65 | . 1 . 1 2 19 . . 1 . . . . 7 . . . . . . 1 13 5 3 8 . . 2 . 2 . . Guns 56 | . 1 . 1 2 17 . . 1 . . . . 7 . . . . . . 1 13 5 3 3 . . 2 . . . . Cannons 3 | . . . . . . . . . . . . . . . . . . . . . . . . 3 . . . . . . . AOE 2 | . . . . . 1 . . . . . . . . . . . . . . . . . . . . . . . 1 . . Classes Destroyed 13 | . 2 . . 1 3 . . 1 . 1 . . 3 . . . . . . . 1 . . . . . . . 1 . . Worker 2 | . . . . . 1 . . . . . . . . . . . . . . . . . . . . . . . 1 . . Tunneler 1 | . . . . . 1 . . . . . . . . . . . . . . . . . . . . . . . . . . Operator 1 | . . . . . . . . 1 . . . . . . . . . . . . . . . . . . . . . . . Watcher 7 | . 1 . . . 3 . . 1 . . . . . . . . . . . . 1 . . 1 . . . . . . . Swarmer 12 | . . . . . 7 . . . . . . . . . . . . . . . 1 . . 2 . . 2 . . . . Grunt 24 | . 1 . 1 . 10 . . . . . . . 4 . . . . . . . 3 2 . 3 . . . . . . . Brawler 2 | . . . . . . . . . . . . . 1 . . . . . . . . 1 . . . . . . . . . Sentry 17 | . . . . 2 2 . . 1 . . . . . . . . . . . 1 6 . 3 2 . . . . . . . Hunter 4 | . . . . . . . . . . . . . 1 . . . . . . . 2 . . 1 . . . . . . . Programmer 2 | . . . . . . . . . . . . . 1 . . . . . . . . . . . . . . . 1 . . Behemoth 1 | . . . . . . . . . . . . . . . . . . . . . 1 . . . . . . . . . . Cetus Guard 2 | . . . . . . . . . . . . . . . . . . . . . . 2 . . . . . . . . . Striker 1 | . . . . . . . . . . . . . . . . . . . . . . . . . . . . . 1 . . Wizard 2 | . . . . . . . . . . . . . . . . . . . . . . . . . . . . . 2 . . Mutant 1 | . . . . . . . . . . 1 . . . . . . . . . . . . . . . . . . . . . Best Kill Streak 10 | . 2 . 1 2 10 . . 2 . . . . 2 . . . . . . 1 3 2 1 4 . . 2 . 1 . . Combat Bots Only 8 | . 1 . 1 2 8 . . 1 . . . . 2 . . . . . . 1 3 2 1 4 . . 2 . 1 . . Max Kills in Single Turn 2 | . 1 . 1 1 2 . . 1 . 1 . . 1 . . . . . . 1 2 1 1 2 . . 1 . 2 . . Gunslinging 1 | . . . . . . . . . . . . . . . . . . . . . 1 . . . . . . . . . . Exploded 1 | . . . . . 1 . . . . . . . . . . . . . . . . . . . . . . . 1 . . Melee . | . . . . . . . . . . . . . . . . . . . . . . . . . . . . . . . . Uniques/NPCs Destroyed . | . . . . . . . . . . . . . . . . . . . . . . . . . . . . . . . . Combat | -11 -10 -10 -10 -9 -8 -7 -7 -7 -7 -7 -7 -6 -6 -6 -6 -6 -6 -6 -5 -5 -5 -5 -5 -5 -4 -4 -3 -3 -2 -2 -1 -------- Run | Scr Mat Min Exi Min Mat Fac Was Fac Low Low Dat Pro Fac Was Fac Low Low Zio Pro Fac Ext Cet Arc Hub Fac DSF Res Tes Res Qua Acc Damage Taken 13287 | . 57 . 21 60 673 16 . 219 . . . . 912 . . . . . . 70 755 2509 493 1316 . . 2207 . 1378 . 2601 Core 4308 | . 35 . 21 15 189 16 . 88 . . . . 203 . . . . . . . 90 396 109 159 . . 775 . 600 . 1612 Absorbed by Shields . | . . . . . . . . . . . . . . . . . . . . . . . . . . . . . . . . Reduced by Siege Mode 120 | . . . . . . . . . . . . . . . . . . . . . . 120 . . . . . . . . . Redirected to Shielding 412 | . . . . . . . . . . . . . . . . . . . . 23 131 . . 258 . . . . . . . Core Remaining (%) 68 | 100 . . . 71 65 . . . . . . 85 . . . . . . 76 . . . . 24 . 100 . 40 . 58 . Volleys Fired 211 | . 12 . . . 16 . . 8 2 4 . . 32 . . . . . . 3 26 42 14 22 . . 10 . 20 . . Largest 3 | . 1 . . . 2 . . 2 1 1 . . 2 . . . . . . 3 3 2 2 3 . . 1 . 2 . . Hottest 180 | . 40 . . . 79 . . 108 80 80 . . 108 . . . . . . 180 180 115 129 180 . . 30 . 120 . . Shots Fired 430 | . 12 . 1 7 78 . . 15 2 4 . . 58 . . . . . . 9 66 58 30 49 . . 10 . 31 . . Gun 423 | . 12 . 1 7 78 . . 15 2 4 . . 58 . . . . . . 9 66 58 30 42 . . 10 . 31 . . Cannon 7 | . . . . . . . . . . . . . . . . . . . . . . . . 7 . . . . . . . Launcher . | . . . . . . . . . . . . . . . . . . . . . . . . . . . . . . . . Special . | . . . . . . . . . . . . . . . . . . . . . . . . . . . . . . . . Kinetic 92 | . . . . . 16 . . 8 . . . . 26 . . . . . . . . 16 16 . . . 10 . . . . Thermal 167 | . 12 . . . 16 . . 7 2 4 . . 32 . . . . . . 3 21 42 14 14 . . . . . . . Explosive . | . . . . . . . . . . . . . . . . . . . . . . . . . . . . . . . . Electromagnetic 92 | . . . 1 7 46 . . . . . . . . . . . . . . . . . . 7 . . . . 31 . . Phasic 79 | . . . . . . . . . . . . . . . . . . . . 6 45 . . 28 . . . . . . . Robot Hit Streak 26 | . 7 . 3 7 14 . . 11 3 5 . . 9 . . . . . . 4 6 14 13 23 . . 26 . 4 . . Robot Miss Streak 9 | . 1 . . 2 5 . . 5 1 2 . . 9 . . . . . . 1 2 4 1 1 . . 1 . 4 . . Penetration Max 1 | . . . . . . . . . . . . . . . . . . . . . . 1 1 1 . . . . . . . Secondary Targets 3 | . . . . . . . . . . . . . . . . . . . . . 2 1 . . . . . . . . . Max Gunslinging Chain 1 | . . . . . . . . . . . . . . . . . . . . . 1 1 . . . . . . . . . Autonomous 54 | . . . 1 7 46 . . . . . . . . . . . . . . . . . . . . . . . . . . Shots Hit Robots 330 | . 10 . 1 7 62 . . 14 2 4 . . 54 . . . . . . 3 41 43 25 33 . . 8 . 23 . . Core Hits 206 | . 4 . 1 4 37 . . 18 2 4 . . 50 . . . . . . 2 19 20 11 15 . . 4 . 15 . . Critical Kills 1 | . . . . . . . . . . . . . . . . . . . . . . 1 . . . . . . . . . Critical Parts Destroyed 4 | . . . . . 1 . . . . . . . . . . . . . . . . 2 . . . . 1 . . . . Critical Strikes 15 | . . . . . 4 . . . . . . . . . . . . . . . 4 4 . 2 . . 1 . . . . Burn 2 | . . . . . 2 . . . . . . . . . . . . . . . . . . . . . . . . . . Destroy 6 | . . . . . 1 . . . . . . . . . . . . . . . . 4 . . . . 1 . . . . Corrupt 2 | . . . . . 1 . . . . . . . . . . . . . . . . . . 1 . . . . . . . Intensify 5 | . . . . . . . . . . . . . . . . . . . . . 4 . . 1 . . . . . . . Melee Attacks 1 | . . . . . . . . . . . . . . . . . . . . . . . . . . . 1 . . . . Impact . | . . . . . . . . . . . . . . . . . . . . . . . . . . . . . . . . Slashing . | . . . . . . . . . . . . . . . . . . . . . . . . . . . . . . . . Piercing 1 | . . . . . . . . . . . . . . . . . . . . . . . . . . . 1 . . . . Sneak Attacks . | . . . . . . . . . . . . . . . . . . . . . . . . . . . . . . . . Combat Hostiles . | . . . . . . . . . . . . . . . . . . . . . . . . . . . . . . . . Follow-up Attacks . | . . . . . . . . . . . . . . . . . . . . . . . . . . . . . . . . Damage Inflicted 9051 | . 115 . 20 90 1462 . . 288 41 90 . . 1092 . . . . . . 96 1368 1540 736 1266 . . 213 . 634 . . Guns 7936 | . 115 . 20 90 1312 . . 273 41 90 . . 1084 . . . . . . 96 1353 1537 736 835 . . 167 . 187 . . Cannons 431 | . . . . . . . . . . . . . . . . . . . . . . . . 431 . . . . . . . Explosions 595 | . . . . . 148 . . . . . . . . . . . . . . . . . . . . . . . 447 . . Melee 44 | . . . . . . . . . . . . . . . . . . . . . . . . . . . 44 . . . . Ramming 45 | . . . . . 2 . . 15 . . . . 8 . . . . . . . 15 3 . . . . 2 . . . . Kinetic 1854 | . . . . . 165 . . 145 . . . . 404 . . . . . . . . 572 401 . . . 167 . . . . Thermal 3593 | . 115 . . . 263 . . 128 41 90 . . 680 . . . . . . 30 297 965 335 202 . . . . 447 . . Explosive . | . . . . . . . . . . . . . . . . . . . . . . . . . . . . . . . . Electromagnetic 1760 | . . . 20 90 1032 . . . . . . . . . . . . . . . . . . 431 . . . . 187 . . Impact . | . . . . . . . . . . . . . . . . . . . . . . . . . . . . . . . . Slashing . | . . . . . . . . . . . . . . . . . . . . . . . . . . . . . . . . Piercing 44 | . . . . . . . . . . . . . . . . . . . . . . . . . . . 44 . . . . Phasic 1755 | . . . . . . . . . . . . . . . . . . . . 66 1056 . . 633 . . . . . . . Highest Corruption 15 | . . . . . . . . . . . . . 3 11 11 11 11 11 . . . 10 10 15 . . 8 8 . . . Average Corruption 9 | . . . . . . . . . . . . . 2 9 11 11 11 11 . . . 9 9 10 . . 3 8 . . . Corruption Purged 1 | . . . . . . . . . . . . . . . . . . . . . . . 1 . . . . . . . . Corruption Blocked 4 | . . . . . . . . . . . . . . . . . . . . . . . . . . . . . 4 . . Effects 77 | . . . . . . . . . . . . . . 1 8 4 15 2 . . . 3 23 14 . . 6 1 . . . Message Errors 26 | . . . . . . . . . . . . . . . 1 2 9 1 . . . 2 4 4 . . 3 . . . . Matter Fused 10 | . . . . . . . . . . . . . . . 2 . . . . . . . 4 2 . . 2 . . . . Heat Flow Errors 11 | . . . . . . . . . . . . . . . 1 2 2 . . . . . 5 . . . 1 . . . . Energy Discharges 12 | . . . . . . . . . . . . . . . . . 3 1 . . . 1 4 3 . . . . . . . Data Loss (minor) 8 | . . . . . . . . . . . . . . . 2 . . . . . . . 2 3 . . . 1 . . . Data Loss (major) 6 | . . . . . . . . . . . . . . . 2 . 1 . . . . . 1 2 . . . . . . . Misfires 2 | . . . . . . . . . . . . . . . . . . . . . . . 2 . . . . . . . . Misdirections 2 | . . . . . . . . . . . . . . 1 . . . . . . . . 1 . . . . . . . . Overload Shots . | . . . . . . . . . . . . . . . . . . . . . . . . . . . . . . . . Overflow Damage 52 | . . . . . . . . . . . . . . . . . . . . . . . . . . . . . 52 . . Projectiles . | . . . . . . . . . . . . . . . . . . . . . . . . . . . . . . . . Explosions 52 | . . . . . . . . . . . . . . . . . . . . . . . . . . . . . 52 . . Melee . | . . . . . . . . . . . . . . . . . . . . . . . . . . . . . . . . Knockbacks . | . . . . . . . . . . . . . . . . . . . . . . . . . . . . . . . . Impact . | . . . . . . . . . . . . . . . . . . . . . . . . . . . . . . . . Kinetic . | . . . . . . . . . . . . . . . . . . . . . . . . . . . . . . . . Secondary . | . . . . . . . . . . . . . . . . . . . . . . . . . . . . . . . . Self-Inflicted Damage 43 | . . . . . 31 . . . . . . . . . . . . . . . . . . . . . 1 . 11 . . Shots 2 | . . . . . 1 . . . . . . . . . . . . . . . . . . . . . . . 1 . . Rammed 10 | . . . . . . . . 4 . . . . 1 . . . . . . . . 4 . . . . 1 . . . . Targets Rammed 14 | . . . . . 1 . . 4 . . . . 1 . . . . . . . 3 4 . . . . 1 . . . . Kicked 3 | . . . . . . . . . . . . . . . . . . . . . 3 . . . . . . . . . . Crushed 1 | . . . . . 1 . . . . . . . . . . . . . . . . . . . . . . . . . . Highest Temperature 247 | . 50 . . 10 137 . . 42 24 24 . . 24 . 104 184 140 . . 24 30 152 247 50 . . 135 . 27 . 19 Average Temperature 38 | . 39 . . 5 35 . . 15 15 15 . . 11 . 58 105 64 . . 7 3 60 70 13 . . 31 . 12 . 7 Received Heat Transfer 2121 | . 30 . 12 27 252 . . 60 . . . . 261 . . . . . . 18 138 921 63 90 . . 78 . 18 . 153 Siege Activations 2 | . . . . . . . . . . . . . . . . . . . . . . 2 . . . . . . . . . Total Turns 44 | . . . . . . . . . . . . . . . . . . . . . . 44 . . . . . . . . . Longest Duration 36 | . . . . . . . . . . . . . . . . . . . . . . 36 . . . . . . . . . Robots Corrupted 4 | . . . . . 1 . . . . . . . . . . . . . . . . . . 2 . . . . 1 . . Combat Hostiles 4 | . . . . . 1 . . . . . . . . . . . . . . . . . . 2 . . . . 1 . . Parts Fried 8 | . . . . . 6 . . . . . . . . . . . . . . . . . . 1 . . . . 1 . . Impact Corruptions . | . . . . . . . . . . . . . . . . . . . . . . . . . . . . . . . . Robots Melted . | . . . . . . . . . . . . . . . . . . . . . . . . . . . . . . . . Combat Hostiles . | . . . . . . . . . . . . . . . . . . . . . . . . . . . . . . . . Parts Melted 5 | . 2 . . . . . . . . . . . . . . . . . . . 1 . 1 . . . . . 1 . . Heat Transferred 5525 | . 250 . . . 644 . . 275 100 200 . . 1475 . . . . . . 37 370 1258 407 259 . . . . 250 . . Parts Sabotaged . | . . . . . . . . . . . . . . . . . . . . . . . . . . . . . . . . Parts Stolen . | . . . . . . . . . . . . . . . . . . . . . . . . . . . . . . . . Parts Stripped . | . . . . . . . . . . . . . . . . . . . . . . . . . . . . . . . . Power Chain Reactions 5 | . . . . . 1 . . . . . . . . . . . . . . . . . . . . . . . 4 . . Missiles Intercepted . | . . . . . . . . . . . . . . . . . . . . . . . . . . . . . . . . Alert | -11 -10 -10 -10 -9 -8 -7 -7 -7 -7 -7 -7 -6 -6 -6 -6 -6 -6 -6 -5 -5 -5 -5 -5 -5 -4 -4 -3 -3 -2 -2 -1 ------- Run | Scr Mat Min Exi Min Mat Fac Was Fac Low Low Dat Pro Fac Was Fac Low Low Zio Pro Fac Ext Cet Arc Hub Fac DSF Res Tes Res Qua Acc Peak Influence 735 | . 57 22 . 55 735 277 96 130 . . . . 153 28 5 . . . . 65 282 297 245 246 65 49 377 106 384 235 350 Initial 277 | . . 22 . . 21 277 96 . . . . . 75 28 5 . . . . 52 31 148 102 15 65 49 27 106 59 190 140 Average 127 | . 32 22 . 51 472 277 81 22 . . . . 74 19 4 . . . . 46 108 220 148 93 65 49 105 106 178 193 186 Maximum Alert Level 3 | . . . . . 3 1 . . . . . . . . . . . . . . 1 1 1 1 . . 1 . 1 1 1 Low Security (%) 80 | . 100 100 . 100 6 . 100 100 . . . . 100 100 100 . . . . 100 96 38 59 91 100 100 84 100 68 90 66 Level 1 14 | . . . . . 30 100 . . . . . . . . . . . . . . 3 61 40 8 . . 15 . 31 9 33 Level 2 4 | . . . . . 51 . . . . . . . . . . . . . . . . . . . . . . . . . . Level 3 . | . . . . . 11 . . . . . . . . . . . . . . . . . . . . . . . . . . Level 4 . | . . . . . . . . . . . . . . . . . . . . . . . . . . . . . . . . Level 5 . | . . . . . . . . . . . . . . . . . . . . . . . . . . . . . . . . High Security . | . . . . . . . . . . . . . . . . . . . . . . . . . . . . . . . . Max Security . | . . . . . . . . . . . . . . . . . . . . . . . . . . . . . . . . Squads Dispatched 24 | . . . . . 4 . . 2 . . . . 2 . . . . . . 1 3 . . . . . 3 1 3 1 4 Investigation 10 | . . . . . . . . 1 . . . . 1 . . . . . . 1 2 . . . . . 1 1 1 1 1 Extermination 3 | . . . . . . . . 1 . . . . 1 . . . . . . . . . . . . . 1 . . . . Reinforcement 8 | . . . . . 1 . . . . . . . . . . . . . . . 1 . . . . . 1 . 2 . 3 Assault . | . . . . . . . . . . . . . . . . . . . . . . . . . . . . . . . . Garrison 3 | . . . . . 3 . . . . . . . . . . . . . . . . . . . . . . . . . . Intercept . | . . . . . . . . . . . . . . . . . . . . . . . . . . . . . . . . Searches Triggered . | . . . . . . . . . . . . . . . . . . . . . . . . . . . . . . . . Data Miner Redirects 4 | . . . . . . . . . . . . . . . . . . . . . 2 . . . . . 1 . . 1 . Construction Impeded . | . . . . . . . . . . . . . . . . . . . . . . . . . . . . . . . . Haulers Reinforced . | . . . . . . . . . . . . . . . . . . . . . . . . . . . . . . . . Active Scanning Responses . | . . . . . . . . . . . . . . . . . . . . . . . . . . . . . . . . Cargo Convoy Interrupts 1 | . . . . . . . . . . . . . . . . . . . . . . . . . . . 1 . . . . Stealth | -11 -10 -10 -10 -9 -8 -7 -7 -7 -7 -7 -7 -6 -6 -6 -6 -6 -6 -6 -5 -5 -5 -5 -5 -5 -4 -4 -3 -3 -2 -2 -1 --------- Run | Scr Mat Min Exi Min Mat Fac Was Fac Low Low Dat Pro Fac Was Fac Low Low Zio Pro Fac Ext Cet Arc Hub Fac DSF Res Tes Res Qua Acc Distress Signals 13 | . 1 . . . 2 . . . . . . . . . . . . . . . 2 1 . . . . 1 . 2 1 3 Communications Jammed . | . . . . . . . . . . . . . . . . . . . . . . . . . . . . . . . . Distress Signals . | . . . . . . . . . . . . . . . . . . . . . . . . . . . . . . . . Times Spotted 342 | . 5 . 2 2 32 1 1 7 . . . . 9 5 1 2 . . . 1 23 20 11 23 . . 74 . 49 1 73 Peak Tracking Total 20 | . 3 . 1 2 5 1 1 2 . . . . 4 5 1 3 . . . 1 6 9 1 8 . . 20 . 20 . 19 Tactical Retreats 16 | . . . . . 3 . . . . . . . . . . . . . . . 1 . . 2 . . 3 . 1 . 6 Traps | -11 -10 -10 -10 -9 -8 -7 -7 -7 -7 -7 -7 -6 -6 -6 -6 -6 -6 -6 -5 -5 -5 -5 -5 -5 -4 -4 -3 -3 -2 -2 -1 ------- Run | Scr Mat Min Exi Min Mat Fac Was Fac Low Low Dat Pro Fac Was Fac Low Low Zio Pro Fac Ext Cet Arc Hub Fac DSF Res Tes Res Qua Acc Traps Triggered 7 | . . . . . 1 1 . 1 . . . . 1 . . . . . . . . . . . . . 1 . . . 2 Indirectly . | . . . . . . . . . . . . . . . . . . . . . . . . . . . . . . . . Trap Hack Attempts . | . . . . . . . . . . . . . . . . . . . . . . . . . . . . . . . . Triggered . | . . . . . . . . . . . . . . . . . . . . . . . . . . . . . . . . Disarmed . | . . . . . . . . . . . . . . . . . . . . . . . . . . . . . . . . Reprogrammed . | . . . . . . . . . . . . . . . . . . . . . . . . . . . . . . . . Reused . | . . . . . . . . . . . . . . . . . . . . . . . . . . . . . . . . Traps Extracted . | . . . . . . . . . . . . . . . . . . . . . . . . . . . . . . . . Installed . | . . . . . . . . . . . . . . . . . . . . . . . . . . . . . . . . Triggered 5 | . . . . . . . . . 2 . . . . . . . . . . 1 . . . . . . . . 2 . . Machines | -11 -10 -10 -10 -9 -8 -7 -7 -7 -7 -7 -7 -6 -6 -6 -6 -6 -6 -6 -5 -5 -5 -5 -5 -5 -4 -4 -3 -3 -2 -2 -1 ---------- Run | Scr Mat Min Exi Min Mat Fac Was Fac Low Low Dat Pro Fac Was Fac Low Low Zio Pro Fac Ext Cet Arc Hub Fac DSF Res Tes Res Qua Acc Machines Disabled 12 | . . . . . 2 . . . . . . . . . . . . . . . 5 1 1 3 . . . . . . . Max in Single Turn 2 | . . . . . 1 . . . . . . . . . . . . . . . 1 1 1 2 . . . . . . . Network Hub 2 | . . . . . . . . . . . . . . . . . . . . . . . . 2 . . . . . . . Energy Cycler 1 | . . . . . . . . . . . . . . . . . . . . . 1 . . . . . . . . . . Machines Sabotaged . | . . . . . . . . . . . . . . . . . . . . . . . . . . . . . . . . Garrisons Compromised . | . . . . . . . . . . . . . . . . . . . . . . . . . . . . . . . . Overloaded Fab Kills . | . . . . . . . . . . . . . . . . . . . . . . . . . . . . . . . . Hacking | -11 -10 -10 -10 -9 -8 -7 -7 -7 -7 -7 -7 -6 -6 -6 -6 -6 -6 -6 -5 -5 -5 -5 -5 -5 -4 -4 -3 -3 -2 -2 -1 --------- Run | Scr Mat Min Exi Min Mat Fac Was Fac Low Low Dat Pro Fac Was Fac Low Low Zio Pro Fac Ext Cet Arc Hub Fac DSF Res Tes Res Qua Acc Machines Accessed 14 | . . . 1 . . . . 4 . 1 3 . 1 . . . 1 . . . . . . . 1 . 1 . . . 1 Terminals 7 | . . . . . . . . 4 . . . . 1 . . . 1 . . . . . . . 1 . . . . . . Fabricators . | . . . . . . . . . . . . . . . . . . . . . . . . . . . . . . . . Repair Stations . | . . . . . . . . . . . . . . . . . . . . . . . . . . . . . . . . Recycling Units . | . . . . . . . . . . . . . . . . . . . . . . . . . . . . . . . . Scanalyzers . | . . . . . . . . . . . . . . . . . . . . . . . . . . . . . . . . Garrison Access 2 | . . . . . . . . . . . . . . . . . . . . . . . . . . . 1 . . . 1 Total Hacks 42 | . . . 1 . . . . 6 . 1 25 . 2 . . . 3 . . . . . . . 1 . 2 . . . 1 Successful 33 | . . . 1 . . . . 1 . 1 25 . 1 . . . 3 . . . . . . . 1 . . . . . . Failed 9 | . . . . . . . . 5 . . . . 1 . . . . . . . . . . . . . 2 . . . 1 Catastrophic 3 | . . . . . . . . 1 . . . . 1 . . . . . . . . . . . . . . . . . 1 Database Lockouts . | . . . . . . . . . . . . . . . . . . . . . . . . . . . . . . . . Manual 79 | . . . . . . . . 5 . . . . 2 . . . . . . 9 7 . . 12 12 . 14 2 8 2 6 Terminals 12 | . . . . . . . . 6 . . . . 2 . . . 3 . . . . . . . 1 . . . . . . Fabricators . | . . . . . . . . . . . . . . . . . . . . . . . . . . . . . . . . Repair Stations . | . . . . . . . . . . . . . . . . . . . . . . . . . . . . . . . . Recycling Units . | . . . . . . . . . . . . . . . . . . . . . . . . . . . . . . . . Scanalyzers . | . . . . . . . . . . . . . . . . . . . . . . . . . . . . . . . . Garrison Access 3 | . . . . . . . . . . . . . . . . . . . . . . . . . . . 2 . . . 1 Terminal Hacks 33 | . . . 1 . . . . 1 . 1 25 . 1 . . . 3 . . . . . . . 1 . . . . . . Record 10 | . . . 1 . . . . . . . 6 . . . . . 3 . . . . . . . . . . . . . . Part Schematic 10 | . . . . . . . . . . . 10 . . . . . . . . . . . . . . . . . . . . Robot Schematic 6 | . . . . . . . . . . . 6 . . . . . . . . . . . . . . . . . . . . Prototype ID Bank 3 | . . . . . . . . . . . 3 . . . . . . . . . . . . . . . . . . . . Open Door 1 | . . . . . . . . . . 1 . . . . . . . . . . . . . . . . . . . . . Open DSF 1 | . . . . . . . . . . . . . . . . . . . . . . . . . 1 . . . . . . Branch Access Points 2 | . . . . . . . . 1 . . . . 1 . . . . . . . . . . . . . . . . . . Fabricator Hacks . | . . . . . . . . . . . . . . . . . . . . . . . . . . . . . . . . Repair Station Hacks . | . . . . . . . . . . . . . . . . . . . . . . . . . . . . . . . . Recycling Unit Hacks . | . . . . . . . . . . . . . . . . . . . . . . . . . . . . . . . . Scanalyzer . | . . . . . . . . . . . . . . . . . . . . . . . . . . . . . . . . Garrison Access Hacks . | . . . . . . . . . . . . . . . . . . . . . . . . . . . . . . . . Unauthorized Hacks . | . . . . . . . . . . . . . . . . . . . . . . . . . . . . . . . . Terminals . | . . . . . . . . . . . . . . . . . . . . . . . . . . . . . . . . Fabricators . | . . . . . . . . . . . . . . . . . . . . . . . . . . . . . . . . Repair Stations . | . . . . . . . . . . . . . . . . . . . . . . . . . . . . . . . . Recycling Units . | . . . . . . . . . . . . . . . . . . . . . . . . . . . . . . . . Scanalyzers . | . . . . . . . . . . . . . . . . . . . . . . . . . . . . . . . . Garrison Access . | . . . . . . . . . . . . . . . . . . . . . . . . . . . . . . . . Data Cores Recovered 1 | . . . . . . . . 1 . . . . . . . . . . . . . . . . . . . . . . . Used . | . . . . . . . . . . . . . . . . . . . . . . . . . . . . . . . . Hacking Detections 7 | . . . . . . . . 3 . . . . 1 . . . 1 . . . . . . . . . 1 . . . 1 Full Trace Events 1 | . . . . . . . . . . . . . 1 . . . . . . . . . . . . . . . . . . Feedback Events . | . . . . . . . . . . . . . . . . . . . . . . . . . . . . . . . . Feedback Blocked . | . . . . . . . . . . . . . . . . . . . . . . . . . . . . . . . . Robot Schematics Acquired 16 | . . . . . . . . . . . 6 . . . . . . . . . 5 . . . . . 5 . . . . Robots Built . | . . . . . . . . . . . . . . . . . . . . . . . . . . . . . . . . Authchips . | . . . . . . . . . . . . . . . . . . . . . . . . . . . . . . . . Time . | . . . . . . . . . . . . . . . . . . . . . . . . . . . . . . . . Total Robot Build Rating . | . . . . . . . . . . . . . . . . . . . . . . . . . . . . . . . . Part Schematics Acquired 10 | . . . . . . . . . . . 10 . . . . . . . . . . . . . . . . . . . . Parts Built . | . . . . . . . . . . . . . . . . . . . . . . . . . . . . . . . . Authchips . | . . . . . . . . . . . . . . . . . . . . . . . . . . . . . . . . Time . | . . . . . . . . . . . . . . . . . . . . . . . . . . . . . . . . Total Part Build Rating . | . . . . . . . . . . . . . . . . . . . . . . . . . . . . . . . . Parts Repaired . | . . . . . . . . . . . . . . . . . . . . . . . . . . . . . . . . Time . | . . . . . . . . . . . . . . . . . . . . . . . . . . . . . . . . Parts Recycled . | . . . . . . . . . . . . . . . . . . . . . . . . . . . . . . . . Recycled Matter . | . . . . . . . . . . . . . . . . . . . . . . . . . . . . . . . . Retrieved Matter . | . . . . . . . . . . . . . . . . . . . . . . . . . . . . . . . . Retrieved Components . | . . . . . . . . . . . . . . . . . . . . . . . . . . . . . . . . Parts Scanalyzed . | . . . . . . . . . . . . . . . . . . . . . . . . . . . . . . . . Part Schematics Acquired . | . . . . . . . . . . . . . . . . . . . . . . . . . . . . . . . . Parts Damaged . | . . . . . . . . . . . . . . . . . . . . . . . . . . . . . . . . Bothacking | -11 -10 -10 -10 -9 -8 -7 -7 -7 -7 -7 -7 -6 -6 -6 -6 -6 -6 -6 -5 -5 -5 -5 -5 -5 -4 -4 -3 -3 -2 -2 -1 ------------ Run | Scr Mat Min Exi Min Mat Fac Was Fac Low Low Dat Pro Fac Was Fac Low Low Zio Pro Fac Ext Cet Arc Hub Fac DSF Res Tes Res Qua Acc Used RIF Installer . | . . . . . . . . . . . . . . . . . . . . . . . . . . . . . . . . Robots Hacked 15 | . 1 . . . 1 . . 1 . . . . . . 1 . . . . . . 1 1 . . . 4 . 2 . 3 Non-combat 4 | . . . . . . . . . . . . . . . 1 . . . . . . . . . . . 1 . . . 2 Combat 11 | . 1 . . . 1 . . 1 . . . . . . . . . . . . . 1 1 . . . 3 . 2 . 1 Robot Hacks Applied 24 | . 1 . . . 2 . . 2 . . . . . . 1 . . . . . . 1 1 . . . 7 . 4 . 5 find_recycling 3 | . . . . . . . . . . . . . . . 1 . . . . . . . . . . . 1 . . . 1 map_route 1 | . . . . . . . . . . . . . . . . . . . . . . . . . . . . . . . 1 mark_security 1 | . . . . . . . . . . . . . . . . . . . . . . . . . . . . . . . 1 find_shortcuts 11 | . 1 . . . 1 . . 1 . . . . . . . . . . . . . 1 1 . . . 3 . 2 . 1 find_garrison 8 | . . . . . 1 . . 1 . . . . . . . . . . . . . . . . . . 3 . 2 . 1 Relay Couplers Released . | . . . . . . . . . . . . . . . . . . . . . . . . . . . . . . . . Fabnet Peak Effective % . | . . . . . . . . . . . . . . . . . . . . . . . . . . . . . . . . Robots Rewired 7 | . . . . . . . . . . . . . . . . . . . . . 7 . . . . . . . . . . Allies Hacked . | . . . . . . . . . . . . . . . . . . . . . . . . . . . . . . . . Hacks Repelled . | . . . . . . . . . . . . . . . . . . . . . . . . . . . . . . . . Allies | -11 -10 -10 -10 -9 -8 -7 -7 -7 -7 -7 -7 -6 -6 -6 -6 -6 -6 -6 -5 -5 -5 -5 -5 -5 -4 -4 -3 -3 -2 -2 -1 -------- Run | Scr Mat Min Exi Min Mat Fac Was Fac Low Low Dat Pro Fac Was Fac Low Low Zio Pro Fac Ext Cet Arc Hub Fac DSF Res Tes Res Qua Acc Total Allies 35 | . . . . . . . . . . . . 1 . 1 . . . 6 . 2 13 1 . 3 . . 2 . 6 . . Largest Group 9 | . . . . . . . . . . . . 1 . 1 . . . 6 6 1 9 6 . 2 . . 2 . 3 . . Highest-Rated Group 444 | . . . . . . . . . . . . 96 . 31 . . . 219 219 85 444 171 . 170 . . 206 . 244 . . Highest-Rated Ally 122 | . . . . . . . . . . . . 96 . 31 . . . 39 39 85 85 44 . 85 . . 103 . 122 . . Zionite Dispatches 6 | . . . . . . . . . . . . . . . . . . . . 1 1 . . 1 . . 1 . 2 . . Heavy 4 | . . . . . . . . . . . . . . . . . . . . 1 . . . 1 . . 1 . 1 . . Light 1 | . . . . . . . . . . . . . . . . . . . . . 1 . . . . . . . . . . Hacker 1 | . . . . . . . . . . . . . . . . . . . . . . . . . . . . . 1 . . Total Orders . | . . . . . . . . . . . . . . . . . . . . . . . . . . . . . . . . Ally Attacks 292 | . . . . . 19 . . . . . . 23 . 7 . . . . 63 2 128 31 . 6 . . 3 . 10 . . Total Damage 8325 | . . . . . 1000 . . . . . . 785 . 147 . . . . 1089 61 2880 743 . 354 . . 317 . 949 . . Kills 47 | . . . . . 7 . . . . . . 6 . . . . . . 12 . 8 6 . 2 . . 2 . 4 . . Allies Corrupted 4 | . . . . . . . . . . . . . . . . . . . . . . . . . . . 2 . 2 . . Allies Melted . | . . . . . . . . . . . . . . . . . . . . . . . . . . . . . . . . Turrets Deployed 1 | . . . . . 1 . . . . . . . . . . . . . . . . . . . . . . . . . . Intel | -11 -10 -10 -10 -9 -8 -7 -7 -7 -7 -7 -7 -6 -6 -6 -6 -6 -6 -6 -5 -5 -5 -5 -5 -5 -4 -4 -3 -3 -2 -2 -1 ------- Run | Scr Mat Min Exi Min Mat Fac Was Fac Low Low Dat Pro Fac Was Fac Low Low Zio Pro Fac Ext Cet Arc Hub Fac DSF Res Tes Res Qua Acc Robot Analysis Total 14 | . 1 . . . 1 . . 1 . . . . . . 1 . . . . . . 2 2 1 . . 2 . 1 . 2 Derelict Logs Recovered 12 | . . 1 . 1 . . . . 1 1 . . . . . 1 2 2 3 . . . . . . . . . . . . Drone Launches . | . . . . . . . . . . . . . . . . . . . . . . . . . . . . . . . . Drone Recoveries . | . . . . . . . . . . . . . . . . . . . . . . . . . . . . . . . . Zionite Intel Received 13 | . . . . . . . . . . . . . . . . . . . . 2 1 . . 2 3 . 3 . 1 . 1 Main Access 1 | . . . . . . . . . . . . . . . . . . . . . . . . . . . . . . . 1 Branch Access 1 | . . . . . . . . . . . . . . . . . . . . . . . . . . . 1 . . . . Guard Positions 1 | . . . . . . . . . . . . . . . . . . . . . . . . . . . . . 1 . . Component Stockpiles 2 | . . . . . . . . . . . . . . . . . . . . . . . . 1 1 . . . . . . Prototype Stockpiles 1 | . . . . . . . . . . . . . . . . . . . . . . . . . 1 . . . . . . Unaware Schematics 2 | . . . . . . . . . . . . . . . . . . . . . 1 . . . . . 1 . . . . Unaware Analyses 1 | . . . . . . . . . . . . . . . . . . . . 1 . . . . . . . . . . . Active Garrisons 2 | . . . . . . . . . . . . . . . . . . . . . . . . . 1 . 1 . . . . Depthwide Sectors/0 1 | . . . . . . . . . . . . . . . . . . . . 1 . . . . . . . . . . . Depthwide Sectors/-1 1 | . . . . . . . . . . . . . . . . . . . . . . . . 1 . . . . . . . Exploration | -11 -10 -10 -10 -9 -8 -7 -7 -7 -7 -7 -7 -6 -6 -6 -6 -6 -6 -6 -5 -5 -5 -5 -5 -5 -4 -4 -3 -3 -2 -2 -1 ------------- Run | Scr Mat Min Exi Min Mat Fac Was Fac Low Low Dat Pro Fac Was Fac Low Low Zio Pro Fac Ext Cet Arc Hub Fac DSF Res Tes Res Qua Acc Turns Passed 11807 | . 92 63 204 315 624 144 471 769 704 909 132 376 602 69 259 245 472 814 486 500 922 230 604 489 142 35 443 47 172 33 440 Spaces Moved 9777 | 1 89 53 170 211 343 91 269 506 438 562 83 236 314 131 335 246 466 770 483 441 637 92 103 349 143 35 882 108 269 96 825 Core 919 | 1 72 . 16 . 2 2 269 73 . . . . 19 131 179 . . . . 1 . 26 7 . . . 22 . 2 . 97 Treads 2483 | . . . . . 158 89 . 433 438 562 83 236 295 . . . . . . . . 37 70 82 . . . . . . . Legs 1465 | . 17 53 112 . . . . . . . . . . . . . . . . 65 637 29 . 267 143 35 107 . . . . Wheels 2548 | . . . . . . . . . . . . . . . 156 246 466 770 483 375 . . . . . . 17 . . . 35 Hover 679 | . . . 42 211 183 . . . . . . . . . . . . . . . . . 26 . . . 54 . 144 . 19 Flight 1683 | . . . . . . . . . . . . . . . . . . . . . . . . . . . 682 108 123 96 674 Fastest Speed 34 | 50 50 120 50 150 50 50 50 50 160 160 160 160 50 50 50 100 100 100 100 50 110 50 50 100 100 100 34 42 34 34 34 Average Speed 102 | 50 63 120 120 150 147 157 50 144 160 160 160 160 153 50 73 100 100 100 100 101 110 116 126 118 100 100 46 42 44 34 48 Slowest Speed 200 | 50 120 120 150 150 160 160 50 160 160 160 160 160 160 50 100 100 100 100 100 110 110 160 160 160 100 100 116 42 116 34 200 Overloaded Moves . | . . . . . . . . . . . . . . . . . . . . . . . . . . . . . . . . Propulsion Burnouts . | . . . . . . . . . . . . . . . . . . . . . . . . . . . . . . . . Robots Hopped 33 | . . . . . 3 . . . . . . . . . 1 . . . . . . . . . . . 16 . 8 . 5 Cave-ins Triggered . | . . . . . . . . . . . . . . . . . . . . . . . . . . . . . . . . Exploration Rate (%) 40 | 2 31 19 52 51 38 4 87 20 64 67 69 43 10 76 9 52 61 83 58 13 81 49 74 45 6 36 25 29 14 15 28 Regions Visited 31 Branch Regions 17 Pre-discovered Areas 21 | . . 1 1 . . . . . 1 . 1 . . . . . 1 1 . 9 . . . 6 . . . . . . . Known Exits Taken 5 | . . . . . . . . 1 . . . . . . 1 . . . 1 . . . . . 1 . 1 . . . . Unknown Exits Taken 21 | 1 1 1 1 1 1 . . . 1 1 1 1 . . . 1 1 1 . 1 1 1 1 1 . . . 1 1 1 . Scrap Searched 9 | . . . . 1 . . . . . 1 . 1 . . . 2 2 1 1 . . . . . . . . . . . . Spaces Dug 5 | . . . . . . . . . . . . . . . . . . . . 3 . . . 2 . . . . . . . Terrain Destroyed 62 | . . . . . 8 . . . . . . . . . . . . . . 5 14 4 2 10 . . . . 19 . . Melee . | . . . . . . . . . . . . . . . . . . . . . . . . . . . . . . . . Projectile 35 | . . . . . . . . . . . . . . . . . . . . 5 14 4 2 10 . . . . . . . AOE 27 | . . . . . 8 . . . . . . . . . . . . . . . . . . . . . . . 19 . . Terrain Rammed . | . . . . . . . . . . . . . . . . . . . . . . . . . . . . . . . . Walls Destroyed . | . . . . . . . . . . . . . . . . . . . . . . . . . . . . . . . . Machines Disabled . | . . . . . . . . . . . . . . . . . . . . . . . . . . . . . . . . Actions | -11 -10 -10 -10 -9 -8 -7 -7 -7 -7 -7 -7 -6 -6 -6 -6 -6 -6 -6 -5 -5 -5 -5 -5 -5 -4 -4 -3 -3 -2 -2 -1 --------- Run | Scr Mat Min Exi Min Mat Fac Was Fac Low Low Dat Pro Fac Was Fac Low Low Zio Pro Fac Ext Cet Arc Hub Fac DSF Res Tes Res Qua Acc Total 11168 | . 112 52 169 210 425 91 604 527 439 567 82 235 369 133 347 245 473 813 486 487 806 154 549 384 142 34 891 109 280 95 858 Wait 1086 | . 12 . . . 68 . 335 10 . 2 . . 22 3 . . 2 44 4 18 49 17 433 14 . . 14 2 . . 37 Move 9688 | . 88 52 169 210 336 91 268 505 437 561 82 235 314 130 332 245 465 769 482 440 636 91 102 348 142 34 852 107 254 95 816 Hop 28 | . . . . . 3 . . . . . . . . . 1 . . . . . . . . . . . 14 . 6 . 4 Pick Up 24 | . . . . . . . . . . . . . . . 7 . 3 . . 13 . . . . . . . . . . 1 Fast Attach . | . . . . . . . . . . . . . . . . . . . . . . . . . . . . . . . . Attach . | . . . . . . . . . . . . . . . . . . . . . . . . . . . . . . . . Detach . | . . . . . . . . . . . . . . . . . . . . . . . . . . . . . . . . Swap . | . . . . . . . . . . . . . . . . . . . . . . . . . . . . . . . . Drop 4 | . . . . . 1 . . . . . . . . . . . 3 . . . . . . . . . . . . . . Fire 211 | . 12 . . . 16 . . 8 2 4 . . 32 . . . . . . 3 26 42 14 22 . . 10 . 20 . . Melee 1 | . . . . . . . . . . . . . . . . . . . . . . . . . . . 1 . . . . Ram . | . . . . . . . . . . . . . . . . . . . . . . . . . . . . . . . . Kick 3 | . . . . . . . . . . . . . . . . . . . . . 3 . . . . . . . . . . Crush 10 | . . . . . 1 . . 4 . . . . 1 . . . . . . . . 4 . . . . . . . . . Escape Stasis . | . . . . . . . . . . . . . . . . . . . . . . . . . . . . . . . . Rewire 93 | . . . . . . . 1 . . . . . . . . . . . . . 92 . . . . . . . . . . Trap . | . . . . . . . . . . . . . . . . . . . . . . . . . . . . . . . . Miscellaneous 20 | . . . . . . . . . . . . . . . 7 . . . . 13 . . . . . . . . . . . Route ------- -11/Scrapyard -10/Materials -10/Mines -10/Exiles -9/Mines -8/Materials (discovered 2 exits: [*Fac] / [*Sto]) -7/Factory -7/Waste -7/Factory (discovered 3 exits: *Fac / *Low x2) -7/Lower Caves -7/Lower Caves (discovered 2 exits: *Fac / *Dat) -7/Data Miner -6/Proximity Caves -6/Factory (discovered 2 exits: Low x2) -6/Waste -6/Factory (discovered 2 exits: *Fac / *Low) -6/Lower Caves -6/Lower Caves (discovered 2 exits: *Fac / [*Zio]) -6/Zion (discovered 2 exits: Dee / [*Pro]) -5/Proximity Caves -5/Factory (discovered 2 exits: *Upp / *Ext) -5/Extension (discovered 3 exits: *Fac x2 / [*Cet]) -5/Cetus -5/Archives -5/Hub_04(d) (discovered 2 exits: *Fac x2) -4/Factory -4/DSF -3/Research (discovered 2 exits: *Tes x2) -3/Testing -2/Research -2/Quarantine -1/Access (discovered 1 exit: Sur) History --------- Turn | Location | Event 1 | -11/Scrapyard | Discovered new exit (range 0) 1 | -11/Scrapyard | Entered Materials 33 | -10/Materials | Discovered new exit (range 13) 93 | -10/Materials | Entered Mines 109 | -10/Mines | Learned location of Zion (-6) 132 | -10/Mines | Found a damaged Exp. Sensor Array with a note attached 151 | -10/Mines | Deemed a non-threat by the Exiles lab entrance 151 | -10/Mines | Discovered new exit (range 5) 156 | -10/Mines | Entered Exiles 186 | -10/Exiles | Met 8R-AWN 206 | -10/Exiles | Met EX-HEX 254 | -10/Exiles | Met EX-DEC 299 | -10/Exiles | Took control of EX-DEC (ally) 348 | -10/Exiles | Discovered new exit (range 10) 360 | -10/Exiles | Left Exiles lab with Deploy-a-Sentry 360 | -10/Exiles | Entered Mines 489 | -9/Mines | YI-UF0 nonchalantly dropped a Grenade Launcher on the ground 495 | -9/Mines | Learned Materials emergency access door positions 657 | -9/Mines | Discovered new exit (range 9) 675 | -9/Mines | Entered Materials 750 | -8/Materials | Destroyed 8 combat bots 845 | -8/Materials | Garrison activated, responded to threat 949 | -8/Materials | DAS Turret deployed 970 | -8/Materials | Discovered new exit (range 6) 1197 | -8/Materials | Discovered new exit (range 12) 1299 | -8/Materials | Entered Factory 1443 | -7/Factory | Manually triggered Chute Trap 1443 | -7/Factory | Sucked down chute 1443 | -7/Factory | Entered Waste 1443 | -7/Waste | The area was eerily silent 1890 | -7/Waste | A Compactor rumbled back to life 1890 | -7/Waste | Spotted C-40 Crusher 1906 | -7/Waste | Discovered new exit (range 12) 1914 | -7/Waste | Entered Factory 1963 | -7/Factory | Discovered new exit (range 15) 2327 | -7/Factory | Identified exit to Lower Caves 2683 | -7/Factory | Entered Lower Caves 3368 | -7/Lower Caves | Discovered new exit (range 12) 3387 | -7/Lower Caves | Entered another Lower Caves area 3435 | -7/Lower Caves | Discovered new exit (range 3) 3597 | -7/Lower Caves | Spotted B-75 Beast 3758 | -7/Lower Caves | Encountered a Warlord checkpoint 4253 | -7/Lower Caves | Learned Factory emergency access door positions 4278 | -7/Lower Caves | Discovered new exit (range 12) 4296 | -7/Lower Caves | Entered Data Miner 4296 | -7/Data Miner | Discovered new exit (range 6) 4327 | -7/Data Miner | Met Data Miner 4360 | -7/Data Miner | Learned location of Section 7 (-2) 4360 | -7/Data Miner | Acquired the access code to Warlord's prototype stash 4383 | -7/Data Miner | Received God Mode back door access code from Data Miner 4428 | -7/Data Miner | Entered Proximity Caves 4793 | -6/Proximity Caves | Discovered new exit (range 8) 4804 | -6/Proximity Caves | Entered Factory 4930 | -6/Factory | Identified exit to Lower Caves 5406 | -6/Factory | Sucked down chute 5406 | -6/Factory | Entered Waste 5407 | -6/Waste | Met a frightened Derelict 5415 | -6/Waste | Spotted C-40 Crusher 5415 | -6/Waste | Spotted C-40 Crusher 5421 | -6/Waste | EMP discharged 5421 | -6/Waste | System corruption reached 10% 5425 | -6/Waste | Lost 6 parts (1p2n1u2w) 5451 | -6/Waste | Spotted C-40 Crusher 5451 | -6/Waste | Spotted C-40 Crusher 5455 | -6/Waste | Spotted C-40 Crusher 5468 | -6/Waste | Spotted C-40 Crusher 5470 | -6/Waste | Discovered new exit (range 10) 5475 | -6/Waste | Entered Factory 5628 | -6/Factory | Discovered new exit (range 7) 5721 | -6/Factory | Discovered exit to Lower Caves (range 9) 5734 | -6/Factory | Entered Lower Caves 5756 | -6/Lower Caves | Learned Factory stockpile data 5972 | -6/Lower Caves | Discovered new exit (range 8) 5979 | -6/Lower Caves | Entered another Lower Caves area 5979 | -6/Lower Caves | Discovered new exit (range 10) 5984 | -6/Lower Caves | Learned Factory interactive machine intel 6033 | -6/Lower Caves | Learned 8 Factory zone layouts 6033 | -6/Lower Caves | Learned location of 1 exit from Proximity Caves 6374 | -6/Lower Caves | Learned Factory non-interactive machine intel 6443 | -6/Lower Caves | Discovered new exit (range 9) 6451 | -6/Lower Caves | Entered Zion 6492 | -6/Zion | System corruption cleaned by Quarantine Array 6564 | -6/Zion | Loaded intel: 5 derelict terminal locations 6722 | -6/Zion | Imprinted 6725 | -6/Zion | Declared Zion's savior 6805 | -6/Zion | Identified exit to Deep Caves 6847 | -6/Zion | Gained Derelict followers 7074 | -6/Zion | Discovered new exit (range 11) 7265 | -6/Zion | Entered Proximity Caves 7265 | -5/Proximity Caves | Accompanied by 6 allies 7266 | -5/Proximity Caves | Identified exit to Factory 7305 | -5/Proximity Caves | Learned Factory security intel 7608 | -5/Proximity Caves | Learned Factory security intel 7643 | -5/Proximity Caves | Learned Factory emergency access door positions 7751 | -5/Proximity Caves | Entered Factory 7752 | -5/Factory | Identified exit to Upper Caves 7756 | -5/Factory | Loaded intel: 215 non-interactive machine locations 7757 | -5/Factory | Loaded intel: 51 interactive machine locations 7927 | -5/Factory | Retrieved Zion intel report: Depthwide Sectors/0 7934 | -5/Factory | Spotted B-75 Beast 8152 | -5/Factory | Retrieved Zion intel report: Unaware Analyses 8153 | -5/Factory | Zion Heavy squad teleported in 8236 | -5/Factory | Discovered new exit (range 12) 8251 | -5/Factory | Entered Extension 8251 | -5/Extension | Accompanied by 1 ally 8281 | -5/Extension | Rescued a captive Derelict 8281 | -5/Extension | Rescued a captive Derelict 8302 | -5/Extension | Incoming investigation squad redirected 8333 | -5/Extension | Energy Cycler disabled 8333 | -5/Extension | Rescued a captive Derelict 8334 | -5/Extension | Rescued a captive Derelict 8334 | -5/Extension | Rescued a captive Derelict 8335 | -5/Extension | Rescued a captive Derelict 8335 | -5/Extension | Rescued a captive Derelict 8336 | -5/Extension | Rescued a captive Derelict 8443 | -5/Extension | Incoming investigation squad redirected 8654 | -5/Extension | Retrieved Zion intel report: Unaware Schematics 8655 | -5/Extension | Zion Light squad teleported in 8788 | -5/Extension | Spotted B-75 Beast 8806 | -5/Extension | Allies destroyed B-75 Beast 8813 | -5/Extension | Spotted B-75 Beast 8821 | -5/Extension | Destroyed B-75 Beast 8824 | -5/Extension | Discovered new exit (range 14) 8858 | -5/Extension | Extracted ID and sensor layout for unrecognized location from A7's data core 9130 | -5/Extension | Discovered new exit (range 10) 9132 | -5/Extension | Discovered new exit (range 6) 9173 | -5/Extension | Entered Cetus 9173 | -5/Cetus | Accompanied by 5 allies 9182 | -5/Cetus | Spotted Cetus Guard 9182 | -5/Cetus | Spotted Cetus Guard 9183 | -5/Cetus | Spotted Cetus Guard 9187 | -5/Cetus | Lost 3 parts (1u2w) 9190 | -5/Cetus | Spotted Cetus Guard 9191 | -5/Cetus | Took control of Cetus Guard 9200 | -5/Cetus | Destroyed Cetus Guard 9203 | -5/Cetus | Destroyed Cetus Guard 9204 | -5/Cetus | Allies destroyed Cetus Guard 9301 | -5/Cetus | System corruption reached 10% 9347 | -5/Cetus | Lost 3 parts (1p1u1w) 9363 | -5/Cetus | Spotted Cetus Guard 9382 | -5/Cetus | Discovered new exit (range 16) 9393 | -5/Cetus | Lost 3 parts (1n1u1w) 9403 | -5/Cetus | Entered Archives 9467 | -5/Archives | Core integrity fell below 50% 9644 | -5/Archives | Discovered new exit (range 16) 10007 | -5/Archives | Entered Hub_04(d) 10110 | -5/Hub_04(d) | Discovered new exit (range 14) 10135 | -5/Hub_04(d) | Retrieved Zion intel report: Depthwide Sectors/-1 10136 | -5/Hub_04(d) | Zion Heavy squad teleported in 10195 | -5/Hub_04(d) | Discovered new exit (range 15) 10266 | -5/Hub_04(d) | Network Hub disabled 10308 | -5/Hub_04(d) | Disrupted transfer network 10367 | -5/Hub_04(d) | Spotted Lightning 10367 | -5/Hub_04(d) | Spotted Lightning 10367 | -5/Hub_04(d) | Spotted Lightning 10372 | -5/Hub_04(d) | Network Hub disabled 10376 | -5/Hub_04(d) | Took control of Lightning 10406 | -5/Hub_04(d) | Lost 4 parts (3u1w) 10418 | -5/Hub_04(d) | Retrieved Zion intel report: Component Stockpiles 10496 | -5/Hub_04(d) | Entered Factory 10547 | -4/Factory | Retrieved Zion intel report: Active Garrisons 10574 | -4/Factory | Retrieved Zion intel report: Prototype Stockpiles 10603 | -4/Factory | Retrieved Zion intel report: Component Stockpiles 10638 | -4/Factory | Identified exit to DSF 10638 | -4/Factory | Entered DSF 10653 | -4/DSF | Discovered new exit (range 16) 10673 | -4/DSF | Entered Research 10731 | -3/Research | Retrieved Zion intel report: Branch Access 10731 | -3/Research | Identified exit to Testing 10780 | -3/Research | Spotted Lightning 10866 | -3/Research | Lost 4 parts (4n) 10980 | -3/Research | Spotted B-86 Titan 11016 | -3/Research | Retrieved Zion intel report: Active Garrisons 11029 | -3/Research | Lost 3 parts (1p1n1w) 11051 | -3/Research | Core integrity fell below 50% 11053 | -3/Research | Spotted Striker 11053 | -3/Research | Spotted Striker 11054 | -3/Research | Cargo convoy interrupted 11075 | -3/Research | Incoming assault squad redirected 11082 | -3/Research | Took control of Striker 11086 | -3/Research | Retrieved Zion intel report: Unaware Schematics 11087 | -3/Research | Zion Heavy squad teleported in 11116 | -3/Research | Entered Testing 11146 | -3/Testing | Lost 4 parts (1p1n2u) 11153 | -3/Testing | Discovered new exit (range 15) 11163 | -3/Testing | Entered Research 11175 | -2/Research | Zion Hacker squad teleported in 11175 | -2/Research | Spotted Striker 11180 | -2/Research | Destroyed Striker 11309 | -2/Research | Retrieved Zion intel report: Guard Positions 11310 | -2/Research | Zion Heavy squad teleported in 11333 | -2/Research | Discovered new exit (range 5) 11335 | -2/Research | Entered Quarantine 11362 | -2/Quarantine | Lost 5 parts (1p3n1w) 11364 | -2/Quarantine | Discovered new exit (range 11) 11366 | -2/Quarantine | Incoming investigation squad redirected 11368 | -2/Quarantine | Entered Access 11521 | -1/Access | Retrieved Zion intel report: Main Access 11521 | -1/Access | Identified exit to Surface 11658 | -1/Access | Spotted B-99 Colossus 11698 | -1/Access | Core integrity fell below 50% 11756 | -1/Access | Core integrity fell below 20% 11762 | -1/Access | Lost 9 parts (6n1u2w) 11800 | -1/Access | Lost 3 parts (1p2n) 11808 | -1/Access | Destroyed by H-88 Terminator with KE Penetrator Last Messages --------------- 11755_ Slug penetrates H-88 Terminator. 11760_ Took control of K-01 Serf. 11760_ Extracted analysis data for K-01 Serf. 11761_ Knocked back. 11766_ Penetrated by Slug. 11766_ Slug penetrates Wall. 11767_ Penetrated by Slug. 11767_ Lgt. Ion Engine destroyed. 11767_ Wheel destroyed. 11769_ Acquired 13 matter. 11774_ U-05 Engineer builds a Wall. 11774_ Acquired 2 matter. 11790_ Released control of K-01 Serf. 11796_ Took control of K-01 Serf. 11798_ Released control of K-01 Serf. 11798_ Took control of W-44 Eye. 11798_ Extracted analysis data for W-44 Eye. 11805_ W-44 Eye sends out distress signal. 11807_ Slug penetrates Wall. 11808_ Penetrated by Slug. Map ----- +----------------------------------------------------+ | ?????????????????+ #??????# #???? | | ?????????????????# #??????# ###########+# | | ?????????????????# #### ##??????# # | | ?????????????????# #??# #?????###/########### # | | ?????????????????# #??# #?????# #??????# # | | ?????????????????# #??# ####### #??????# | | ?????????????????# #??# + * #??????### | | ??????????# #????# #??# ####### #????????? | | ??????????# ###### ####+####### #????????? | | ?????????## # # = #????????? | | ?????????# # ########????????? | | ?????????# w R !!! #???????????????? | | ????###### s # !! #?????????????### | | ?????" # ss# !! #?????????????# | | ?????"" # s############?????????????# | | ???? "" # #???????????????????# | | ??? + s #???????????????????# | | ??? # g #???????????????????#?? | | ??? # g b #?????????????????????? | | ????? # " g #?????????????????????? | | ?????"" # """" #?????????????????????? | | ??????? # """"" #?????????????????????? | | ?????? # """"" ##########??????????????? | | ?????????# """" ^ # #??????????????? | | ?????????#R " k # #??????????????? | | ?????????# w ! ! #??????????????? | | ########## hg # #??????????????? | | h gh h + #??????????????? | | ############### # #??????????????? | | ?????????#######+######+## #??????????????? | | ?????????# ## #??????????????? | | ?????????# ## #??????????????? | | ?????????# ! #?#########??????????????? | | ?????????# #????????????????????????? | | ?????????# #????????????????????????? | | ?????????# #????????????????????????? | | ?????????################????????????????????????? | | | | | | | | | | | | | | | | | | | | | | | | | | | +----------------------------------------------------+ Best States ------------- Heat Dissipation 89 Energy Generation 56 Energy Capacity 1050 Matter Stores 300 Matter Capacity 300 Sight Range 20 Robot Scan Range 16 Terrain Scan Density 10 Power Amplification 30 Corruption Block 15 Armor Coverage 1200 Resistance: KI 25 Resistance: EX 50 Resistance: EM 100 Resistance: I 25 Resistance: S 20 Resistance: P 20 Weapon Shielding 100 Phase Shifting 20 Evasion (%) 75 Targeting Accuracy 12 Launcher Accuracy 40 Target Analysis 8 Core Analysis 8 Armor Integrity Analysis 40 Recoil Reduction 2 Offensive Hacking 70 Defensive Hacking 56 Item Schematics ----------------- Combat Drone Bay | -7/Data Miner | Free Lgt. Regenerative Plating | -7/Data Miner | Free Biomechanical Wings | -7/Data Miner | Free Exp. Power Shielding | -7/Data Miner | Free Cld. Plasma Cannon | -7/Data Miner | Free Cmb. Gravmag System | -7/Data Miner | Free Lyr. Heavy Armor Plating | -7/Data Miner | Free Smartbomb Launcher | -7/Data Miner | Free Imp. Launcher Guidance Computer | -7/Data Miner | Free Imp. Force Field | -7/Data Miner | Free Robot Schematics ------------------ H-66 Slayer | -7/Data Miner | Free M-14 Sweeper | -7/Data Miner | Free R-10 Processor | -7/Data Miner | Free O-24 Administrator | -7/Data Miner | Free S-27 Virus | -7/Data Miner | Free B-48 Gladiator | -7/Data Miner | Free P-60 Hacker | -5/Extension | Z-intel D-63 Destroyer | -5/Extension | Z-intel M-22 Extractor | -5/Extension | Z-intel A-02 Transporter | -5/Extension | Z-intel B-60 Warrior | -5/Extension | Z-intel B-74 Champion | -3/Research | Z-intel A-27 Freighter | -3/Research | Z-intel O-32 Director | -3/Research | Z-intel E-15 Imp | -3/Research | Z-intel L-61 Swordsman | -3/Research | Z-intel Fabricated ------------ Nothing Alien Tech Used ----------------- None Achievements -------------- None Challenges ------------ None Polymind | -11 -10 -10 -10 -9 -8 -7 -7 -7 -7 -7 -7 -6 -6 -6 -6 -6 -6 -6 -5 -5 -5 -5 -5 -5 -4 -4 -3 -3 -2 -2 -1 ---------- Run | Scr Mat Min Exi Min Mat Fac Was Fac Low Low Dat Pro Fac Was Fac Low Low Zio Pro Fac Ext Cet Arc Hub Fac DSF Res Tes Res Qua Acc Robots Controlled 25 | . 1 . 1 . 1 . . 1 . . . . . . 1 . . . . 1 . 2 2 2 . . 5 . 3 . 5 Combat Hostiles 14 | . 1 . . . 1 . . 1 . . . . . . . . . . . . . 2 1 1 . . 4 . 2 . 1 Allies 4 | . . . 1 . . . . . . . . . . . . . . . . 1 . . . 1 . . . . 1 . . Classes Controlled 12 | . 1 . 1 . 1 . . . . . . . . . 1 . . . . 1 . . 1 1 . . 3 . . . 2 Average Host Suspicion 50 | . 100 10 14 95 98 17 . 73 5 5 . 4 81 26 30 18 25 . 4 33 94 99 97 77 39 16 82 25 90 37 90 Unsuspicious Activity 320 | . . . 16 . 11 . . 25 20 40 . . . . 44 . . . . 90 . . 53 . . . . . 20 . 1 Returns to Shadow . | . . . . . . . . . . . . . . . . . . . . . . . . . . . . . . . . Fuzzy Dispatches 1 | . . . . . . . . 1 . . . . . . . . . . . . . . . . . . . . . . . Protomatter Created 2416 | . . . 14 11 126 . 310 . 42 26 . 52 160 . . . . 48 110 50 781 119 174 199 . . 72 . 109 . 13 Used 1008 | . 15 . 33 . 23 . . 51 . . . . . . 5 . . . . 24 . 159 107 157 . . 280 . 70 . 84 Decayed 1189 | . . . . . 4 . 310 . 42 . . 52 . . . . . 48 27 . 542 . 27 80 . . . . 44 . 13 Highest Spend 160 | . 15 . 33 . 23 . . 51 . . . . . . 5 . . . . 24 . 114 97 133 . . 160 . 24 . 45 Top 5 Hosts by Kills: EX-DEC (-10/Exiles: 20) 48-WXG(Z) (-5/Factory: 14) Y-54 Guardian (-7/Factory: 8) Lightning (-5/Hub_04(d): 5) Cetus Guard (-5/Cetus: 4) Game ------ Seed PrecisionCoolantLog Manual? 0 Play Time 01:11:30 Cumulative 887.6 hours Start 2022.12.27 @ 14:06:01 End 2022.12.27 @ 15:16:03 Sessions 1 Manual Loads 0 Difficulty Rogue Special Mode Winter2022/Polymind Game No. 402 Rogue 401 Adventurer 1 Explorer 0 Win Type - Total 126 Types 33/13/18/4/2/1/50/3/2 Lore% 100 Gallery% 99 Achievement% 92 Wizard Run 0 Options --------- ASCII 1 Keyboard 1 Movement Numpad Keybinds 0 Fullscreen 0 Font 18/Smallcaps Map View 76x50 Tactical HUD 1 Map Filters NONE Filters NONE Steam 1 RUN: fabd89be-b978-4d2a-aaf4-b7a6bcdfc87a